bitfinex-derivatives/quotes_BTCF0:USTF0_20250427
["timestamp","ask_amount","ask_price","bid_price","bid_amount"]
[1745716691065,0.00109985,95221.0,95220.0,0.50884614]
[1745716691460,0.00109985,95221.0,95220.0,0.71881874]
[1745716691666,0.00109985,95221.0,95220.0,0.50884614]
[1745716691872,0.21207025,95221.0,95220.0,0.50884614]
[1745716692394,0.00109985,95221.0,95220.0,0.71981874]
[1745716692767,0.21107025,95221.0,95220.0,0.50984614]
[1745716692969,0.22107025,95221.0,95220.0,0.14904614]
[1745716693268,0.61123223,95221.0,95220.0,0.14904614]
[1745716693862,0.74343223,95221.0,95220.0,0.14904614]
[1745716694569,0.74343223,95221.0,95220.0,0.15004614]
[1745716695474,0.2099925,95211.0,95200.0,0.33]
[1745716695663,0.8607925,95211.0,95210.0,0.13262599]
[1745716695974,0.2100145,95201.0,95200.0,0.1]
[1745716696170,0.46111435,95201.0,95200.0,0.23]
[1745716696365,0.2100344,95192.0,95191.0,0.1282]
[1745716696679,0.8508344,95192.0,95191.0,0.06777045]
[1745716696864,0.2100587,95181.0,95180.0,0.36185064]
[1745716697175,0.49115855,95181.0,95180.0,0.50964314]
[1745716698161,0.49115855,95181.0,95167.0,0.0525221]
[1745716698162,1.00556385,95181.0,95157.0,0.3608]
[1745716698363,0.2101006,95162.0,95161.0,0.2612]
[1745716698570,0.2101006,95162.0,95161.0,0.4212]
[1745716699173,0.33120045,95162.0,95161.0,0.4212]
[1745716699573,0.33120045,95162.0,95161.0,0.4242]
[1745716699974,0.12109985,95162.0,95161.0,0.6343028]
[1745716700175,0.267,95196.0,95163.0,0.0525245]
[1745716700370,0.267,95196.0,95177.0,0.3608]
[1745716700371,0.2100653,95178.0,95177.0,0.3608]
[1745716700566,0.3700653,95178.0,95177.0,0.14]
[1745716701069,0.4900653,95178.0,95177.0,0.14]
[1745716701474,0.7524653,95178.0,95177.0,0.14]
[1745716702273,0.4900653,95178.0,95177.0,0.14]
[1745716702472,0.2101006,95162.0,95161.0,0.26912237]
[1745716702674,0.2101006,95162.0,95161.0,0.41912237]
[1745716703672,0.0525208,95170.0,95161.0,0.41912237]
[1745716703872,0.2100875,95168.0,95166.0,0.210091]
[1745716704077,0.08676,95192.0,95167.0,0.2743]
[1745716704282,0.2100587,95181.0,95180.0,0.3608]
[1745716704470,0.2600587,95181.0,95180.0,0.5008]
[1745716705277,0.05,95181.0,95180.0,0.7108609]
[1745716705479,0.4108,95181.0,95180.0,0.14]
[1745716705682,0.9659227,95181.0,95180.0,0.14]
[1745716706171,1.0859227,95181.0,95180.0,0.14]
[1745716706682,1.3437227,95181.0,95180.0,0.14]
[1745716707474,1.3447227,95181.0,95180.0,0.14]
[1745716709981,0.7618587,95181.0,95180.0,0.14]
[1745716710182,0.2810587,95181.0,95180.0,0.14]
[1745716718596,0.2100653,95178.0,95177.0,0.1252]
[1745716718796,0.0525185,95175.0,95168.0,0.3608]
[1745716719003,0.2100852,95169.0,95168.0,0.5108]
[1745716719295,0.4800852,95169.0,95168.0,0.5108]
[1745716719701,0.4800852,95169.0,95168.0,0.15]
[1745716719886,0.6082852,95169.0,95168.0,0.15]
[1745716720087,0.7282852,95169.0,95168.0,0.15]
[1745716721194,0.7282852,95169.0,95168.0,0.151]
[1745716722997,0.7282852,95169.0,95168.0,0.15]
[1745716723597,0.052526,95161.0,95150.0,0.00105097]
[1745716723799,0.2101315,95148.0,95147.0,0.005255]
[1745716723999,0.8409315,95148.0,95147.0,0.155255]
[1745716724204,0.9609315,95148.0,95147.0,0.155255]
[1745716724596,1.0876315,95148.0,95147.0,0.155255]
[1745716724795,1.2250315,95148.0,95147.0,0.16319787]
[1745716725098,1.2250315,95148.0,95147.0,0.16519787]
[1745716725303,1.2250315,95148.0,95147.0,0.13069247]
[1745716725603,1.2250315,95148.0,95147.0,0.0744117]
[1745716725795,0.2101757,95128.0,95109.0,0.1267]
[1745716726100,0.8409757,95128.0,95127.0,0.15]
[1745716726398,0.9609757,95128.0,95127.0,0.15]
[1745716726899,0.3601757,95128.0,95127.0,0.15773557]
[1745716727400,0.4601757,95128.0,95127.0,0.15]
[1745716727601,0.2101956,95119.0,95118.0,0.01769546]
[1745716727793,0.2101956,95119.0,95102.0,0.140013]
[1745716727794,0.210231,95103.0,95102.0,0.140013]
[1745716727993,0.210231,95103.0,95102.0,0.210013]
[1745716727994,0.811031,95103.0,95102.0,0.210013]
[1745716728193,0.931031,95103.0,95102.0,0.210013]
[1745716728593,1.546631,95103.0,95102.0,0.210013]
[1745716728817,0.210242,95098.0,95093.0,0.00798607]
[1745716728993,0.500242,95098.0,95097.0,0.53676038]
[1745716729196,0.620242,95098.0,95097.0,0.53676038]
[1745716730006,0.620242,95098.0,95097.0,0.16]
[1745716730303,0.500242,95098.0,95097.0,0.16]
[1745716730913,0.502242,95098.0,95097.0,0.16]
[1745716731204,0.502242,95098.0,95086.0,0.26587046]
[1745716731205,0.2102641,95088.0,95086.0,0.26587046]
[1745716731397,0.8210641,95088.0,95087.0,0.14525831]
[1745716731995,0.9508641,95088.0,95087.0,0.14525831]
[1745716732193,1.1951641,95088.0,95087.0,0.14525831]
[1745716732401,1.1951641,95088.0,95087.0,0.27865831]
[1745716732608,1.0708641,95088.0,95087.0,0.27965831]
[1745716733004,0.12,95088.0,95087.0,0.61642461]
[1745716733207,0.0525641,95092.0,95087.0,0.88132631]
[1745716733398,0.2102641,95088.0,95087.0,0.52615831]
[1745716733599,0.2102603,95090.0,95089.0,0.2102575]
[1745716733811,0.2102603,95090.0,95089.0,0.15]
[1745716737804,0.2102603,95090.0,95089.0,0.151]
[1745716738408,0.2102603,95090.0,95089.0,0.15]
[1745716739909,0.7810603,95090.0,95089.0,0.0694174]
[1745716740110,0.9010603,95090.0,95089.0,0.0694174]
[1745716740312,1.0350603,95090.0,95089.0,0.0694174]
[1745716741904,1.0350603,95090.0,95089.0,0.3408174]
[1745716742309,0.2102641,95088.0,95087.0,1e-08]
[1745716742514,0.4802641,95088.0,95087.0,0.06408871]
[1745716742809,0.5854321,95088.0,95087.0,0.06408871]
[1745716743114,0.9711321,95088.0,95087.0,0.06408871]
[1745716743610,0.8659641,95088.0,95087.0,0.06408871]
[1745716744109,0.8659641,95088.0,95087.0,0.06508871]
[1745716744110,0.6115641,95088.0,95087.0,0.06508871]
[1745716744311,0.7167321,95088.0,95087.0,0.06508871]
[1745716744809,0.7167321,95088.0,95087.0,0.06408871]
[1745716745216,0.8367321,95088.0,95087.0,0.06408871]
[1745716746510,0.8367321,95088.0,95087.0,0.03593181]
[1745716747032,0.7315641,95088.0,95087.0,0.03593181]
[1745716747215,0.8367321,95088.0,95087.0,1e-08]
[1745716748915,0.8367321,95088.0,95051.0,0.0525859]
[1745716748916,0.2103172,95064.0,95063.0,0.1352]
[1745716749119,1.2019172,95064.0,95063.0,0.2952]
[1745716749311,0.2103238,95061.0,95060.0,0.00105196]
[1745716749507,0.4503238,95061.0,95060.0,0.15105196]
[1745716749706,0.5555198,95061.0,95060.0,0.00462166]
[1745716750014,0.2103305,95058.0,95057.0,3e-08]
[1745716750215,0.2103305,95058.0,95057.0,0.15000003]
[1745716750216,0.4503305,95058.0,95057.0,0.15000003]
[1745716750716,0.4503305,95058.0,95057.0,3e-08]
[1745716750717,0.5555305,95058.0,95057.0,3e-08]
[1745716750918,0.2103792,95036.0,95035.0,0.3404814]
[1745716751116,0.3608,95044.0,95043.0,0.2103637]
[1745716751420,0.5711615,95044.0,95043.0,0.3703637]
[1745716751608,0.2103615,95044.0,95043.0,0.3703637]
[1745716752119,0.2103525,95049.0,95048.0,0.2103482]
[1745716752318,0.5711461,95051.0,95050.0,0.2103482]
[1745716752513,0.5711461,95051.0,95050.0,0.35843518]
[1745716752715,0.8411461,95051.0,95050.0,0.14808698]
[1745716752923,0.8411461,95051.0,95050.0,0.14]
[1745716753220,0.9611461,95051.0,95050.0,0.14]
[1745716753528,1.2268461,95051.0,95050.0,0.14]
[1745716754015,1.2268461,95051.0,95050.0,0.1109148]
[1745716754814,1.3320541,95051.0,95050.0,0.1109148]
[1745716755018,0.2103902,95031.0,95020.0,0.01766922]
[1745716755214,0.2103902,95031.0,95000.0,0.56246703]
[1745716755215,0.2103969,95028.0,95027.0,3e-08]
[1745716755408,0.4703969,95028.0,95027.0,3e-08]
[1745716755616,0.0526095,95010.0,95006.0,0.1375]
[1745716755814,0.5712434,95007.0,95006.0,0.0901991]
[1745716756119,0.9012434,95007.0,95006.0,0.0901991]
[1745716756317,0.2104478,95005.0,95004.0,7e-08]
[1745716756513,0.2104478,95005.0,94970.0,0.15979399]
[1745716756514,0.24,95005.0,94970.0,0.15979399]
[1745716756743,0.2105099,94977.0,94976.0,0.3393121]
[1745716756914,0.3608,94982.0,94981.0,0.210501]
[1745716757113,0.5712988,94982.0,94981.0,0.350501]
[1745716757323,0.3608,94982.0,94981.0,0.600501]
[1745716757614,0.5712988,94982.0,94981.0,0.600501]
[1745716757828,0.3608,94982.0,94981.0,0.600501]
[1745716758011,0.3608,94982.0,94981.0,0.603501]
[1745716758217,0.3608,94982.0,94981.0,0.513]
[1745716758413,0.3608,94982.0,94981.0,0.263]
[1745716758414,0.5912988,94982.0,94981.0,0.263]
[1745716758609,0.3808,94982.0,94981.0,0.263]
[1745716758820,0.3808,94982.0,94981.0,0.473501]
[1745716759012,0.4928,94996.0,94986.0,0.2104869]
[1745716759313,0.2104855,94988.0,94987.0,0.2794]
[1745716759513,0.0526145,95001.0,94987.0,0.2794]
[1745716759514,0.08424,95018.0,94987.0,0.8002]
[1745716759713,0.2104567,95001.0,95000.0,0.3608]
[1745716760013,0.3608,95007.0,95006.0,0.2104456]
[1745716760218,0.1368437,95020.0,95006.0,0.16]
[1745716760423,0.2104434,95007.0,95006.0,0.15]
[1745716760620,0.4504434,95007.0,95006.0,0.15]
[1745716761044,0.2104434,95007.0,95006.0,0.15]
[1745716761219,0.2304434,95007.0,95006.0,0.15]
[1745716762521,0.9921434,95007.0,95006.0,0.15]
[1745716763326,1.1121434,95007.0,95006.0,0.15]
[1745716763524,1.1121434,95007.0,95006.0,0.0959898]
[1745716763719,1.1141434,95007.0,95006.0,0.0959898]
[1745716764324,1.1151434,95007.0,95006.0,0.0969898]
[1745716764822,1.1151434,95007.0,94950.0,0.16698378]
[1745716764823,0.0526166,94997.0,94975.0,0.0526284]
[1745716765024,0.2104988,94982.0,94981.0,0.5008]
[1745716765212,0.2404988,94982.0,94981.0,0.5008]
[1745716765917,0.5124988,94982.0,94981.0,0.5008]
[1745716766727,0.5124988,94982.0,94981.0,0.14]
[1745716766921,0.5124988,94982.0,94981.0,0.143]
[1745716767415,0.5124988,94982.0,94981.0,0.14]
[1745716767615,0.5124988,94982.0,94981.0,0.143]
[1745716768723,0.5124988,94982.0,94953.0,0.210562]
[1745716768724,0.2105232,94971.0,94953.0,0.210562]
[1745716768920,0.2705232,94971.0,94970.0,0.06901957]
[1745716769223,0.2105232,94971.0,94970.0,0.06901957]
[1745716770227,0.2113026,94971.0,94970.0,0.20201957]
[1745716771027,0.210501,94982.0,94970.0,1.06849957]
[1745716771227,0.0526154,94999.0,94981.0,0.4608]
[1745716771424,0.14,94999.0,94991.0,0.3608]
[1745716771625,0.0526184,94994.0,94992.0,0.2703]
[1745716771847,0.2104744,94993.0,94992.0,0.4303]
[1745716772024,0.2404744,94993.0,94992.0,0.4303]
[1745716773227,0.2104744,94993.0,94992.0,0.4303]
[1745716774033,0.2204744,94993.0,94992.0,0.4303]
[1745716774530,0.2224744,94993.0,94992.0,0.4303]
[1745716776030,0.2224744,94993.0,94992.0,0.16]
[1745716776233,0.2105165,94974.0,94973.0,0.22]
[1745716776528,0.2205165,94974.0,94973.0,0.11]
[1745716776920,0.2205165,94974.0,94973.0,0.2435]
[1745716777520,0.2205165,94974.0,94973.0,0.3776]
[1745716778027,0.2215165,94974.0,94973.0,0.3806]
[1745716778429,0.2105298,94968.0,94967.0,0.00526496]
[1745716778635,0.4805298,94968.0,94967.0,0.14526496]
[1745716779228,0.6005298,94968.0,94967.0,0.14526496]
[1745716779629,0.6005298,94968.0,94967.0,0.14626496]
[1745716780737,0.6005298,94968.0,94967.0,0.15421811]
[1745716780934,0.6005298,94968.0,94954.0,0.37843896]
[1745716780935,0.2105586,94955.0,94954.0,0.3608]
[1745716781232,0.5805586,94955.0,94954.0,0.4808]
[1745716782028,0.9413586,94955.0,94954.0,0.04096077]
[1745716782228,0.2105897,94941.0,94935.0,0.13]
[1745716782434,0.8413897,94941.0,94940.0,0.14105329]
[1745716782634,0.9467177,94941.0,94940.0,0.14105329]
[1745716783136,1.2320897,94941.0,94940.0,0.14105329]
[1745716783430,1.2330897,94941.0,94940.0,0.14205329]
[1745716783635,0.8722897,94941.0,94940.0,0.14205329]
[1745716784941,0.8722897,94941.0,94940.0,0.35264519]
[1745716784942,0.161,94941.0,94940.0,0.35264519]
[1745716785238,0.2515897,94941.0,94940.0,0.35264519]
[1745716785436,0.2115897,94941.0,94940.0,0.35264519]
[1745716785632,0.2115897,94941.0,94940.0,0.71344519]
[1745716787031,0.2115897,94941.0,94940.0,0.50285329]
[1745716787241,0.2115897,94941.0,94937.0,0.00526662]
[1745716787242,0.2105963,94938.0,94937.0,0.00526662]
[1745716787537,0.2105963,94938.0,94937.0,0.15526662]
[1745716787538,0.8413963,94938.0,94937.0,0.15526662]
[1745716788335,0.7113963,94938.0,94937.0,0.15526662]
[1745716788841,0.7113963,94938.0,94910.0,0.00263401]
[1745716788842,0.2106562,94911.0,94910.0,0.00263401]
[1745716789039,0.5714562,94911.0,94910.0,0.26263401]
[1745716789239,0.2106562,94911.0,94910.0,0.27049576]
[1745716790233,0.003,94911.0,94910.0,0.39049576]
[1745716790440,0.2136562,94911.0,94910.0,0.39049576]
[1745716791240,0.2136562,94911.0,94910.0,0.27049576]
[1745716791536,0.5844562,94911.0,94910.0,0.16263401]
[1745716791939,0.5844562,94911.0,94910.0,0.43213401]
[1745716792547,0.5844562,94911.0,94900.0,0.1]
[1745716792548,0.479164,94911.0,94900.0,0.1]
[1745716792740,0.2106784,94901.0,94900.0,0.05260759]
[1745716792930,0.5006784,94901.0,94900.0,0.10672539]
[1745716793180,1.5029204,94901.0,94900.0,0.10672539]
[1745716793331,1.0113504,94901.0,94900.0,0.10672539]
[1745716793731,0.9059784,94901.0,94900.0,0.10672539]
[1745716795146,0.4157784,94901.0,94900.0,0.10672539]
[1745716795439,0.8899504,94901.0,94900.0,0.10672539]
[1745716796139,1.0139504,94901.0,94900.0,0.10672539]
[1745716796364,0.2107229,94881.0,94877.0,0.00526995]
[1745716796553,0.8015229,94881.0,94880.0,0.0788488]
[1745716796755,0.8015229,94881.0,94880.0,0.07105396]
[1745716797654,0.2107175,94884.0,94883.0,0.2107135]
[1745716797951,0.01,94884.0,94883.0,0.2807135]
[1745716798154,0.2106944,94894.0,94892.0,0.2106966]
[1745716798347,0.2206944,94894.0,94893.0,0.1452]
[1745716798549,0.8314944,94894.0,94893.0,0.07]
[1745716799052,0.9368744,94894.0,94893.0,0.07]
[1745716799855,0.9418744,94894.0,94893.0,0.07]
[1745716800061,0.73118,94894.0,94880.0,0.0089231]
[1745716800247,0.2107295,94878.0,94864.0,0.1452]
[1745716800451,0.8115295,94878.0,94864.0,0.1452]
[1745716800659,0.91692951,94878.0,94864.0,0.1452]
[1745716801049,1.03692951,94878.0,94864.0,0.1452]
[1745716801350,1.03692951,94878.0,94850.0,0.00105429]
[1745716801559,1.03692951,94878.0,94853.0,0.2775]
[1745716801757,1.03692951,94878.0,94861.0,0.2107659]
[1745716801959,1.03692951,94878.0,94858.0,0.0526934]
[1745716801960,0.9335295,94878.0,94862.0,0.2775]
[1745716802261,0.9335295,94878.0,94868.0,0.2107506]
[1745716802559,0.9335295,94878.0,94869.0,0.2775]
[1745716803259,0.8135295,94878.0,94869.0,0.2775]
[1745716803449,0.8155295,94878.0,94869.0,0.28536806]
[1745716805260,0.5795295,94878.0,94869.0,0.15086806]
[1745716805558,0.93492951,94878.0,94869.0,0.00786806]
[1745716806154,0.93492951,94878.0,94853.0,0.4963833]
[1745716806354,0.93492951,94878.0,94853.0,0.2856]
[1745716806759,0.8295295,94878.0,94869.0,0.00781036]
[1745716807016,0.93492951,94878.0,94869.0,0.00781036]
[1745716807154,1.05492951,94878.0,94869.0,0.00781036]
[1745716807762,1.05492951,94878.0,94853.0,0.2856]
[1745716807763,0.2107828,94854.0,94853.0,0.2856]
[1745716807963,0.2407828,94854.0,94853.0,0.2856]
[1745716809363,0.2417828,94854.0,94853.0,0.2856]
[1745716809867,0.4407828,94854.0,94853.0,0.29335162]
[1745716810054,0.4427828,94854.0,94853.0,0.29335162]
[1745716811357,0.4407828,94854.0,94853.0,0.29335162]
[1745716811557,0.4427828,94854.0,94853.0,0.29335162]
[1745716811757,0.232,94854.0,94847.0,0.00527162]
[1745716811961,0.2107962,94848.0,94847.0,2e-08]
[1745716812166,0.9715962,94848.0,94847.0,2e-08]
[1745716812377,1.0770282,94848.0,94847.0,2e-08]
[1745716812665,0.2108495,94824.0,94823.0,0.2937]
[1745716812965,0.7716495,94824.0,94823.0,0.30166747]
[1745716813364,0.7716495,94824.0,94823.0,0.15566747]
[1745716813855,0.7716495,94824.0,94823.0,0.1477]
[1745716814058,0.2108562,94821.0,94820.0,0.00105462]
[1745716814259,0.4908562,94821.0,94820.0,0.00105462]
[1745716815469,0.4938562,94821.0,94820.0,0.00105462]
[1745716815965,0.4908562,94821.0,94820.0,0.00105462]
[1745716816166,0.6178562,94821.0,94820.0,0.00105462]
[1745716817173,0.4978562,94821.0,94820.0,0.00105462]
[1745716817667,0.4988562,94821.0,94820.0,0.00105462]
[1745716818057,0.6188562,94821.0,94820.0,0.00105462]
[1745716818264,0.6188562,94821.0,94790.0,0.36185496]
[1745716818265,0.2108629,94818.0,94817.0,9e-08]
[1745716818465,0.8116629,94818.0,94817.0,9e-08]
[1745716819266,1.1775269,94818.0,94817.0,9e-08]
[1745716819667,1.18804526,94818.0,94817.0,9e-08]
[1745716820059,1.19604526,94818.0,94817.0,9e-08]
[1745716820261,1.1855269,94818.0,94817.0,9e-08]
[1745716821768,0.2109007,94801.0,94800.0,9e-08]
[1745716822069,0.2109007,94801.0,94787.0,0.00527496]
[1745716822070,0.2109229,94791.0,94790.0,0.21198016]
[1745716822372,0.2909229,94791.0,94790.0,0.00878913]
[1745716822564,0.2909229,94791.0,94790.0,0.21971433]
[1745716822979,0.2909229,94791.0,94790.0,0.00878913]
[1745716823265,0.2939229,94791.0,94790.0,0.12878913]
[1745716824259,0.083,94791.0,94790.0,0.02527469]
[1745716824466,0.2939229,94791.0,94790.0,0.02527469]
[1745716825865,0.083,94791.0,94790.0,0.02527469]
[1745716826065,0.2139229,94791.0,94790.0,0.14527469]
[1745716826266,0.003,94791.0,94790.0,0.33971433]
[1745716826464,0.0527169,94816.0,94790.0,1.02824987]
[1745716826665,0.4508,94814.0,94795.0,0.3608]
[1745716826861,0.3608,94814.0,94810.0,0.2108805]
[1745716827071,0.3608,94814.0,94812.0,0.1]
[1745716827276,0.3608,94821.0,94812.0,0.1]
[1745716827277,0.3608,94821.0,94820.0,0.2108584]
[1745716827573,0.3608,94830.0,94823.0,0.2108517]
[1745716827871,0.09998792,94824.0,94823.0,0.22733645]
[1745716828070,0.07998792,94824.0,94823.0,1.33009645]
[1745716828267,0.1458,94843.0,94833.0,0.2108295]
[1745716828509,0.13331321,94836.0,94834.0,0.2108259]
[1745716828671,0.13331321,94836.0,94835.0,0.36940985]
[1745716829071,0.13331321,94836.0,94835.0,0.59485385]
[1745716829777,0.15997585,94843.0,94842.0,0.2108095]
[1745716830072,0.37078315,94843.0,94842.0,0.11648475]
[1745716830268,0.52078315,94843.0,94842.0,0.01648475]
[1745716830490,0.88158315,94843.0,94842.0,0.02456982]
[1745716831768,0.88158315,94843.0,94842.0,0.23537932]
[1745716831769,0.67077585,94843.0,94842.0,0.23537932]
[1745716831970,0.18663849,94858.0,94847.0,0.2107984]
[1745716832174,0.2107774,94857.0,94847.0,0.95987515]
[1745716832374,0.3608,94860.0,94847.0,1.20987515]
[1745716832581,0.3608,94860.0,94847.0,0.43271515]
[1745716832972,0.3608,94860.0,94847.0,0.68271515]
[1745716833276,0.0092,94848.0,94847.0,0.5372304]
[1745716833871,0.0092,94848.0,94847.0,0.6891304]
[1745716834274,0.00033,94863.0,94862.0,0.2107651]
[1745716834472,0.00033,94863.0,94862.0,0.6769811]
[1745716834673,0.10637822,94881.0,94880.0,0.2107251]
[1745716834874,0.14637822,94881.0,94880.0,0.2107251]
[1745716835076,0.14637822,94881.0,94880.0,0.3307251]
[1745716836079,0.14637822,94881.0,94880.0,0.3317251]
[1745716836080,0.043,94881.0,94880.0,0.3317251]
[1745716836270,0.003,94881.0,94880.0,0.5371211]
[1745716837266,0.003,94881.0,94880.0,0.55291433]
[1745716837466,0.003,94881.0,94880.0,0.55291446]
[1745716837671,0.2107082,94888.0,94887.0,0.2107095]
[1745716837874,0.2207082,94888.0,94887.0,0.22650286]
[1745716838076,0.2207082,94888.0,94887.0,0.13579336]
[1745716838787,0.01,94888.0,94887.0,0.34678956]
[1745716839076,0.1453,94896.0,94895.0,0.2106918]
[1745716839278,0.4359895,94896.0,94895.0,0.01608006]
[1745716839470,0.2253,94896.0,94895.0,0.22677186]
[1745716839670,0.2253,94896.0,94895.0,0.01608006]
[1745716839671,0.4359895,94896.0,94895.0,0.01608006]
[1745716839977,0.0526807,94881.0,94873.0,0.0181537]
[1745716840171,0.2107939,94849.0,94848.0,0.1458]
[1745716840372,0.2107962,94848.0,94834.0,0.1469]
[1745716840567,0.2273,94848.0,94847.0,0.21607002]
[1745716840768,0.0526828,94878.0,94850.0,0.0526978]
[1745716840769,0.3608,94862.0,94850.0,0.0526978]
[1745716840980,0.3608,94854.0,94853.0,0.2107851]
[1745716841171,0.2107692,94861.0,94859.0,0.2107707]
[1745716841485,0.2107692,94861.0,94847.0,0.13328083]
[1745716841486,0.2707692,94861.0,94860.0,0.295]
[1745716843272,0.2707692,94861.0,94860.0,0.296]
[1745716844076,0.4162692,94861.0,94860.0,0.296]
[1745716844472,0.4162692,94861.0,94860.0,0.001]
[1745716844784,0.6462692,94861.0,94860.0,0.001]
[1745716845183,0.2107895,94851.0,94850.0,0.2107911]
[1745716845479,0.2107895,94851.0,94849.0,0.0526982]
[1745716845480,0.2107939,94849.0,94848.0,0.2107962]
[1745716845873,0.2107962,94848.0,94845.0,0.2108011]
[1745716846077,0.3762962,94848.0,94820.0,0.00105462]
[1745716846280,0.3762962,94848.0,94847.0,2e-08]
[1745716846281,0.7017282,94848.0,94847.0,2e-08]
[1745716846479,0.9517282,94848.0,94847.0,2e-08]
[1745716846880,0.7017282,94848.0,94847.0,2e-08]
[1745716847070,0.8217282,94848.0,94847.0,2e-08]
[1745716847799,0.2108562,94821.0,94820.0,0.00105462]
[1745716847979,0.7216562,94821.0,94820.0,0.00915048]
[1745716848680,0.72142967,94821.0,94820.0,0.00915048]
[1745716849385,0.72242967,94821.0,94820.0,0.01415048]
[1745716852281,0.72242967,94821.0,94817.0,0.00527329]
[1745716852282,0.2108629,94818.0,94817.0,0.00527329]
[1745716852488,0.2109229,94791.0,94785.0,0.0527338]
[1745716852785,0.2109229,94791.0,94782.0,0.0527352]
[1745716852976,0.5717229,94791.0,94782.0,0.0527352]
[1745716853181,0.2109229,94791.0,94790.0,0.12105496]
[1745716853584,0.3630229,94791.0,94790.0,0.12105496]
[1745716854585,0.3640229,94791.0,94790.0,0.12305496]
[1745716854782,0.7248229,94791.0,94790.0,0.12305496]
[1745716854981,0.1531,94791.0,94790.0,0.43947615]
[1745716855285,0.2108857,94808.0,94807.0,0.2108863]
[1745716855483,0.0527174,94815.0,94790.0,1.37478002]
[1745716855484,0.1521,94809.0,94808.0,0.2108851]
[1745716855684,0.2108993,94802.0,94791.0,0.1478]
[1745716855986,0.2109229,94791.0,94790.0,0.13100403]
[1745716856187,0.2109229,94791.0,94790.0,0.34192923]
[1745716856486,0.1561,94792.0,94791.0,0.2109229]
[1745716857183,0.1561,94792.0,94791.0,0.3309229]
[1745716857420,0.3670207,94792.0,94791.0,0.3309229]
[1745716857886,0.1561,94792.0,94791.0,0.3309229]
[1745716858187,0.3608,94799.0,94798.0,0.2109074]
[1745716858684,0.3608,94799.0,94798.0,0.3163954]
[1745716859085,0.3608,94799.0,94798.0,0.4363954]
[1745716859283,0.3608,94799.0,94798.0,0.4373954]
[1745716859683,0.5717051,94799.0,94798.0,0.121]
[1745716859986,0.5717051,94799.0,94798.0,0.3319074]
[1745716860184,0.3607254,94801.0,94800.0,0.2109029]
[1745716860185,0.1476,94801.0,94800.0,0.2109029]
[1745716860402,0.3608,94810.0,94809.0,0.2108829]
[1745716861195,0.3608,94810.0,94809.0,0.3308829]
[1745716861890,0.2003151,94820.0,94818.0,0.2108612]
[1745716862191,0.210869,94817.0,94816.0,0.2108668]
[1745716862396,0.1514,94819.0,94790.0,0.00900403]
[1745716862594,0.210894,94804.0,94803.0,0.1491]
[1745716862896,0.0527241,94803.0,94790.0,0.00900403]
[1745716863190,0.2109051,94799.0,94798.0,0.1491]
[1745716863389,0.2109185,94793.0,94792.0,0.3608]
[1745716863850,0.2109185,94793.0,94792.0,0.5717207]
[1745716863989,0.0527198,94811.0,94792.0,0.466292]
[1745716864296,0.2109096,94797.0,94794.0,0.052729]
[1745716864485,0.2109096,94797.0,94796.0,0.2109118]
[1745716864927,0.2109052,94799.0,94798.0,0.2109062]
[1745716865082,0.2109096,94797.0,94796.0,0.2992]
[1745716865390,0.2109096,94797.0,94796.0,0.5101118]
[1745716865594,0.2119096,94797.0,94796.0,0.5111118]
[1745716866094,0.001,94797.0,94796.0,0.5111118]
[1745716866688,0.2119096,94797.0,94796.0,0.3002]
[1745716866986,0.3608,94814.0,94813.0,0.210874]
[1745716867186,0.3608,94834.0,94816.0,0.0527163]
[1745716867386,0.3608,94851.0,94847.0,0.2107984]
[1745716867587,0.0152,94848.0,94847.0,0.2107984]
[1745716867794,0.0052,94848.0,94847.0,0.6770304]
[1745716867986,0.2159962,94848.0,94847.0,0.00772998]
[1745716868190,0.2159962,94848.0,94847.0,0.12]
[1745716868191,0.5059962,94848.0,94847.0,0.12]
[1745716868582,0.5079962,94848.0,94847.0,0.12887319]
[1745716868993,0.5059962,94848.0,94847.0,0.12787319]
[1745716869222,0.5079962,94848.0,94847.0,0.00887319]
[1745716869483,0.2879962,94848.0,94847.0,0.00887319]
[1745716869688,0.0772,94848.0,94847.0,0.21967159]
[1745716871097,0.0772,94848.0,94847.0,0.21867159]
[1745716871289,0.0772,94848.0,94847.0,0.21967159]
[1745716873087,0.2879962,94848.0,94847.0,0.00887319]
[1745716873390,0.6601962,94848.0,94847.0,0.001]
[1745716873793,0.8133962,94848.0,94847.0,0.001]
[1745716873995,0.0282,94848.0,94847.0,0.2196526]
[1745716874294,0.0082,94848.0,94847.0,0.3317984]
[1745716877108,0.0082,94848.0,94847.0,0.44521974]
[1745716877599,0.0082,94848.0,94847.0,0.80601974]
[1745716877807,0.0013,94871.0,94870.0,0.2107473]
[1745716878006,0.0013,94871.0,94870.0,0.5715473]
[1745716878303,0.13287846,94884.0,94873.0,0.0526848]
[1745716878506,0.13287846,94884.0,94877.0,0.2107317]
[1745716879102,0.13287846,94884.0,94877.0,0.4361317]
[1745716879799,0.13287846,94884.0,94877.0,0.3307317]
[1745716879995,0.3082,94883.0,94877.0,0.3307317]
[1745716880803,0.0072,94878.0,94877.0,0.3307317]
[1745716882101,0.2179295,94878.0,94877.0,0.12]
[1745716882404,0.2107962,94848.0,94842.0,0.15982286]
[1745716882610,0.2108073,94843.0,94842.0,0.15982286]
[1745716882803,0.2208073,94843.0,94842.0,0.15982286]
[1745716883396,0.01,94843.0,94842.0,0.37063236]
[1745716883595,0.2108073,94843.0,94842.0,0.15982286]
[1745716884001,0.2118073,94843.0,94842.0,0.16582286]
[1745716884604,0.001,94843.0,94842.0,0.38459621]
[1745716885410,0.001,94843.0,94842.0,0.54469621]
[1745716886408,0.001,94843.0,94842.0,0.38487335]
[1745716887004,0.1559,94856.0,94842.0,0.38487335]
[1745716887005,0.210753,94868.0,94842.0,0.27949985]
[1745716887365,0.1537,94858.0,94857.0,0.2107762]
[1745716887903,0.1537,94858.0,94857.0,0.5347762]
[1745716888608,0.1547,94858.0,94857.0,0.5377762]
[1745716890799,0.001,94858.0,94857.0,0.5377762]
[1745716892213,0.1659,94867.0,94857.0,0.5377762]
[1745716892214,0.1659,94867.0,94866.0,0.2107562]
[1745716892418,0.1659,94867.0,94866.0,0.5715562]
[1745716893850,0.1659,94867.0,94866.0,0.5725562]
[1745716896325,0.1659,94867.0,94866.0,0.3618]
[1745716896619,0.1659,94867.0,94866.0,0.5725562]
[1745716899115,0.1659,94867.0,94837.0,0.3608]
[1745716899116,0.2108073,94843.0,94837.0,0.3608]
[1745716899317,0.0527045,94839.0,94832.0,0.0527076]
[1745716899518,0.1636,94838.0,94837.0,0.2108206]